[Event "SVK Extraliga 2017-18"]
[Site "Slovakia"]
[Date "2017.09.30"]
[Round "1"]
[White "Mrva, Martin"]
[Black "Chovan, Milan"]
[Result "1-0"]
[ECO "C77"]
[WhiteElo "2394"]
[BlackElo "2292"]
[Annotator "NA"]
[PlyCount "79"]
[EventDate "2017.09.30"]
[EventType "team-tourn"]
[EventCountry "SVK"]
[SourceTitle "playchess.com"]
[Source "ChessBase"]
[SourceQuality "1"]
[TimeControl "40/5400+30:1800+30"]

1. e4 {[%emt 0:00:00]} e5 {[%emt 0:00:08]} 2. Nf3 {[%emt 0:00:00]} Nc6 {[%emt 0:00:05]} 3. Bb5 {[%emt 0:00:00]} a6 {[%emt 0:00:06]} 4. Ba4 {[%emt 0:00:00]} Nf6 {[%emt 0:00:06]} 5. Nc3 {[%emt 0:00:55]} b5 {[%emt 0:09:14]} 6. Bb3 {[%emt 0:00:06]} Be7 {[%emt 0:02:06]} 7. a4 {[%emt 0:06:30]} b4 {[%emt 0:09:51]} 8. Nd5 {[%emt 0:00:22]} O-O {[%emt 0:05:10]} 9. O-O {[%emt 0:04:31]} d6 {[%emt 0:06:53] LiveBook: 3 Games C84: Closed Ruy Lopez: Unusual White 6th moves} 10. Re1 {[%emt 0:03:27]} (10. d4 Bg4 11. dxe5 dxe5 12. Be3 Na5 13. Nxf6+ Bxf6 14. Bd5 c6 15. Ba2 Qc7 16. h3 Rfd8 17. Qe2 Bxf3 18. Qxf3 {1-0 (32) Adhiban,B (2682)-Gledura,B (2588) Sharjah 2017}) 10... Rb8 {[%emt 0:04:12]} 11. h3 {[%emt 0:12:23]} Na5 {[%emt 0:03:01]} 12. d4 $146 {[%emt 0:01:45]} ({Predecessor:} 12. Nxe7+ Qxe7 13. Ba2 c5 14. d3 h6 15. Nd2 Be6 16. Bc4 Nxc4 17. Nxc4 {0-1 (71) Nikolova,A (2358)-Levushkina,E (2342) Baku 2016}) 12... Nxb3 {[%emt 0:06:16]} 13. cxb3 {[%emt 0:00:23]} (13. Nxe7+ $11 Qxe7 14. cxb3) 13... Nxd5 {[%emt 0:08:51]} 14. exd5 {[%emt 0:00:06]} f6 {[%emt 0:00:12]} 15. Qd3 {[%emt 0:04:01]} Qd7 {[%emt 0:03:14]} 16. Bd2 {[%emt 0:09:50]} a5 {[%emt 0:03:55]} 17. Rac1 {[%emt 0:00:12]} Kh8 {[%emt 0:05:37]} ({Black should play} 17... Bb7 $17 18. Qc4 Bd8 19. dxe5 dxe5) 18. Qc4 {[%emt 0:05:33]} Bd8 {[%emt 0:06:43]} 19. dxe5 {[%emt 0:01:47]} fxe5 {[%emt 0:01:08]} 20. Bg5 {[%emt 0:09:53]} Bb7 {[%emt 0:02:32]} 21. Red1 $2 {[%emt 0:05:40] [#]} (21. Bxd8 $11 {and White is okay.} Rbxd8 22. Ng5) 21... Rxf3 $1 {[%emt 0:01:04]} 22. gxf3 {[%emt 0:01:55]} Bxg5 {[%emt 0:00:13]} 23. Qxc7 {[%emt 0:00:17]} Qd8 {[%emt 0:01:25]} 24. Rc4 {[%emt 0:03:09]} h6 {[%emt 0:02:53]} 25. Kg2 {[%emt 0:05:59]} Ba6 {[%emt 0:02:47]} 26. Rc6 {[%emt 0:05:33]} Qxc7 {[%emt 0:01:38]} 27. Rxc7 {[%emt 0:00:06]} Be2 {[%emt 0:05:02]} 28. Re1 $19 {[%emt 0:00:11]} Bd3 {[%emt 0:00:22]} 29. Ra7 {[%emt 0:04:30]} Bc2 {[%emt 0:00:25]} 30. Rxa5 {[%emt 0:00:10]} Bxb3 {[%emt 0:00:07]} 31. Rb5 {[%emt 0:02:41]} Ra8 {[%emt 0:01:22]} 32. Ra1 {[%emt 0:04:09]} Bd2 {[%emt 0:05:31]} 33. a5 {[%emt 0:00:22]} Ra6 {[%emt 0:00:44]} 34. Rb6 {[%emt 0:00:12]} Bc4 {[%emt 0:00:46]} 35. b3 {[%emt 0:00:32]} Rxb6 {[%emt 0:02:32]} 36. axb6 {[%emt 0:00:14]} Bxd5 {[%emt 0:00:08]} 37. Rd1 {[%emt 0:00:12]} Bb7 {[%emt 0:00:26]} 38. Rxd2 {[%emt 0:00:05]} d5 {[%emt 0:00:03]} 39. Rc2 {[%emt 0:00:16]} d4 {[%emt 0:00:08]} 40. Rc7 {[%emt 0:00:06]} 1-0

[Event "SVK Extraliga 2017-18"]
[Site "Slovakia"]
[Date "2017.09.30"]
[Round "1"]
[White "Pcola, Pavol"]
[Black "Szucs, Vladimir"]
[Result "1/2-1/2"]
[ECO "A37"]
[WhiteElo "2374"]
[BlackElo "2142"]
[Annotator "NA"]
[PlyCount "37"]
[EventDate "2017.09.30"]
[EventType "team-tourn"]
[EventCountry "SVK"]
[SourceTitle "playchess.com"]
[Source "ChessBase"]
[SourceQuality "1"]
[TimeControl "40/5400+30:1800+30"]

{[%evp 19,37,-15,0,0,9,0,32767,32767,23,31,33,32767,5,32767,27,-9,-4,0,2,0]} 1. c4 {[%emt 0:00:00]} c5 {[%emt 0:00:14]} 2. g3 {[%emt 0:00:00]} g6 {[%emt 0:00:16]} 3. Bg2 {[%emt 0:00:00]} Bg7 {[%emt 0:00:08]} 4. Nf3 {[%emt 0:00:00]} Nc6 {[%emt 0:00:17]} 5. Nc3 {[%emt 0:00:02]} e6 {[%emt 0:00:17]} 6. O-O {[%emt 0:00:13]} Nge7 {[%emt 0:00:15]} 7. d3 {[%emt 0:01:51]} O-O {[%emt 0:01:33]} 8. a3 {[%emt 0:00:28]} d5 {[%emt 0:00:20]} 9. Rb1 {[%emt 0:00:47]} b6 {[%emt 0:02:53]} 10. Bd2 {[%emt 0:04:26]} Bb7 {[%emt 0:05:40]} 11. b4 {[%emt 0:03:43]} cxb4 {[%emt 0:01:02]} 12. axb4 {[%emt 0:00:07] LiveBook: 35 Games} dxc4 {[%emt 0:00:31]} 13. dxc4 {[%emt 0:00:07]} Qc8 {[%emt 0:10:04] A37: Symmetrical English vs ...g6: 4 Bg2 Bg7 5 Nf3} (13... a5 14. bxa5 Nxa5 15. Bg5 Bxc3 16. Qxd8 Rfxd8 17. Bxe7 Rd7 18. Bb4 Bxb4 19. Rxb4 Bxf3 20. Bxf3 Rc8 21. Rxb6 Nxc4 {½-½ (33) Bachmann,A (2652)-Popov,I (2618) Benasque 2014}) 14. Ne4 {[%emt 0:06:53]} Qc7 $146 {[%emt 0:09:36]} ({Predecessor:} 14... Rd8 15. c5 a6 16. Nd6 Qd7 17. Ng5 Rf8 18. Be3 b5 19. Ngxf7 Rxf7 20. Nxf7 Qxd1 21. Rfxd1 Kxf7 {0-1 (34) Panchenko,A-Tolonen,L Volgograd 1974}) 15. Qc2 {[%emt 0:34:45]} Nf5 {[%emt 0:06:10]} 16. e3 {[%emt 0:01:27]} a5 {[%emt 0:11:34]} 17. bxa5 {[%emt 0:01:37]} Nxa5 {[%emt 0:02:34]} 18. Rfc1 {[%emt 0:10:06]} Rfc8 {[%emt 0:03:22]} 19. c5 $11 {[%emt 0:11:59]} 1/2-1/2

[Event "SVK Extraliga 2017-18"]
[Site "Slovakia"]
[Date "2017.09.30"]
[Round "1"]
[White "Hrabusa, Matej"]
[Black "Veres, Andrej"]
[Result "1-0"]
[ECO "A46"]
[WhiteElo "2359"]
[BlackElo "2232"]
[Annotator "NA"]
[PlyCount "91"]
[EventDate "2017.09.30"]
[EventType "team-tourn"]
[EventCountry "SVK"]
[SourceTitle "playchess.com"]
[Source "ChessBase"]
[SourceQuality "1"]
[TimeControl "40/5400+30:1800+30"]

1. d4 {[%emt 0:00:00]} Nf6 {[%emt 0:00:39]} 2. Nf3 {[%emt 0:00:00]} e6 {[%emt 0:00:38]} 3. Bf4 {[%emt 0:00:00]} c5 {[%emt 0:06:51]} 4. e3 {[%emt 0:00:00]} Nc6 {[%emt 0:01:55]} 5. Nbd2 {[%emt 0:02:13]} d5 {[%emt 0:02:36]} 6. c3 {[%emt 0:00:15]} Be7 {[%emt 0:01:15]} 7. Bd3 {[%emt 0:04:47]} Nh5 {[%emt 0:05:43]} 8. Be5 {[%emt 0:01:19]} cxd4 {[%emt 0:07:54]} 9. exd4 {[%emt 0:01:20]} Nxe5 {[%emt 0:04:06]} 10. Nxe5 {[%emt 0:00:10]} Nf6 {[%emt 0:00:29]} 11. Ndf3 {[%emt 0:02:08]} O-O {[%emt 0:04:53]} 12. Ng5 {[%emt 0:02:38]} g6 {[%emt 0:10:27]} 13. h4 {[%emt 0:12:52]} Nd7 {[%emt 0:02:14]} 14. Qg4 {[%emt 0:15:52]} f5 {[%emt 0:20:03]} 15. Qh3 {[%emt 0:02:13]} Nxe5 {[%emt 0:05:01]} 16. dxe5 {[%emt 0:00:07]} Bxg5 {[%emt 0:01:37]} 17. hxg5 {[%emt 0:00:26]} Rf7 {[%emt 0:00:01]} 18. f4 {[%emt 0:03:53]} b5 {[%emt 0:03:29]} 19. O-O-O {[%emt 0:02:23]} Qb6 {[%emt 0:02:54]} 20. Kb1 {[%emt 0:02:20]} Bd7 {[%emt 0:03:41]} 21. g4 {[%emt 0:03:48]} Rc8 {[%emt 0:00:16]} 22. gxf5 {[%emt 0:00:41]} exf5 {[%emt 0:00:11]} 23. Bc2 {[%emt 0:08:08]} b4 {[%emt 0:01:46]} 24. Rxd5 {[%emt 0:02:41]} bxc3 {[%emt 0:09:57]} 25. Bb3 {[%emt 0:00:10]} Be6 {[%emt 0:01:34]} 26. Qd3 {[%emt 0:05:38]} Qf2 {[%emt 0:01:41]} 27. bxc3 {[%emt 0:01:45]} Qxf4 {[%emt 0:00:05]} 28. Rd8+ {[%emt 0:08:07]} Rxd8 {[%emt 0:00:01]} 29. Qxd8+ {[%emt 0:00:07]} Kg7 {[%emt 0:00:00]} 30. Bxe6 {[%emt 0:01:06]} Qe4+ {[%emt 0:00:25]} 31. Kb2 {[%emt 0:00:15]} Qg2+ {[%emt 0:02:13]} 32. Ka3 {[%emt 0:00:22]} Qxh1 {[%emt 0:00:24]} 33. Bxf7 {[%emt 0:00:55]} Qc1+ {[%emt 0:00:11]} 34. Kb4 {[%emt 0:02:15]} Kxf7 {[%emt 0:00:08]} 35. Qd7+ {[%emt 0:05:30]} Kg8 {[%emt 0:00:09]} 36. Qe8+ {[%emt 0:06:20]} Kg7 {[%emt 0:00:02]} 37. Qd7+ {[%emt 0:00:17]} Kg8 {[%emt 0:00:03]} 38. e6 {[%emt 0:00:21]} Qb2+ {[%emt 0:00:16]} 39. Kc4 {[%emt 0:00:20]} Qxa2+ {[%emt 0:00:50]} 40. Kd3 {[%emt 0:01:04]} Qb1+ {[%emt 0:30:43]} 41. Kd4 {[%emt 0:33:03]} Qe4+ {[%emt 0:01:51]} 42. Kc5 {[%emt 0:00:15]} Qe3+ {[%emt 0:01:09]} 43. Kd6 {[%emt 0:00:00]} Qg3+ {[%emt 0:00:00]} 44. Ke7 {[%emt 0:00:00]} Qxg5+ {[%emt 0:00:00]} 45. Ke8 {[%emt 0:00:00]} Qf6 {[%emt 0:00:00]} 46. Qf7+ 1-0

[Event "SVK Extraliga 2017-18"]
[Site "Slovakia"]
[Date "2017.09.30"]
[Round "1"]
[White "Zpevak, Pavel"]
[Black "Hausner, Ivan"]
[Result "1/2-1/2"]
[ECO "A41"]
[WhiteElo "2342"]
[BlackElo "2321"]
[Annotator "NA"]
[PlyCount "24"]
[EventDate "2017.09.30"]
[EventType "team-tourn"]
[EventCountry "SVK"]
[SourceTitle "playchess.com"]
[Source "ChessBase"]
[SourceQuality "1"]
[TimeControl "40/5400+30:1800+30"]

1. d4 {[%emt 0:00:00]} d6 {[%emt 0:00:10]} 2. Nf3 {[%emt 0:00:08]} Bg4 {[%emt 0:00:11]} 3. g3 {[%emt 0:01:40]} Bxf3 {[%emt 0:00:07]} 4. exf3 {[%emt 0:00:04]} d5 {[%emt 0:00:03]} 5. Bg2 {[%emt 0:01:35]} e6 {[%emt 0:00:08]} 6. O-O {[%emt 0:01:01]} Ne7 {[%emt 0:02:33]} 7. Qe2 {[%emt 0:04:26]} Nd7 {[%emt 0:01:47]} 8. f4 {[%emt 0:01:43]} g6 {[%emt 0:02:07]} 9. Nd2 {[%emt 0:02:42]} Bg7 {[%emt 0:00:10]} 10. Nf3 {[%emt 0:05:22]} O-O {[%emt 0:04:32]} 11. Be3 {[%emt 0:02:51]} c6 {[%emt 0:01:03]} 12. Rfd1 {[%emt 0:07:59]} Nf5 {[%emt 0:00:22]} 1/2-1/2

[Event "SVK Extraliga 2017-18"]
[Site "Slovakia"]
[Date "2017.09.30"]
[Round "1"]
[White "Plachetka, Jan"]
[Black "Vojtek, Vladimir"]
[Result "1-0"]
[ECO "B01"]
[WhiteElo "2337"]
[BlackElo "2295"]
[Annotator "NA"]
[PlyCount "67"]
[EventDate "2017.09.30"]
[EventType "team-tourn"]
[EventCountry "SVK"]
[SourceTitle "playchess.com"]
[Source "ChessBase"]
[SourceQuality "1"]
[TimeControl "40/5400+30:1800+30"]

1. e4 {[%emt 0:00:00]} d5 {[%emt 0:00:15]} 2. exd5 {[%emt 0:00:00]} Qxd5 {[%emt 0:00:04]} 3. Nf3 {[%emt 0:00:37]} Bg4 {[%emt 0:01:32]} 4. Be2 {[%emt 0:00:13]} Nc6 {[%emt 0:00:55]} 5. Nc3 {[%emt 0:00:49]} Qd7 {[%emt 0:01:54]} 6. h3 {[%emt 0:00:27]} Bh5 {[%emt 0:01:06]} 7. O-O {[%emt 0:06:39]} Nf6 {[%emt 0:05:54]} 8. b4 {[%emt 0:09:52]} Nxb4 {[%emt 0:18:08]} 9. Ne5 {[%emt 0:06:53]} Qf5 $16 {[%emt 0:10:27]} (9... Qd4 $11 {remains equal.} 10. Bxh5 Qxe5) 10. d4 {[%emt 0:08:00]} Bxe2 {[%emt 0:05:44]} 11. Qxe2 {[%emt 0:00:08]} c6 {[%emt 0:02:14]} 12. Rb1 {[%emt 0:04:22]} e6 {[%emt 0:22:02]} 13. Rxb4 {[%emt 0:07:03]} Bxb4 {[%emt 0:00:08]} 14. g4 {[%emt 0:00:09]} Nxg4 {[%emt 0:00:07]} 15. hxg4 {[%emt 0:00:09]} Qf6 {[%emt 0:00:04]} 16. Ne4 {[%emt 0:06:24]} Qe7 {[%emt 0:00:26]} 17. c3 {[%emt 0:03:34]} Ba5 {[%emt 0:07:54]} 18. Nc4 {[%emt 0:01:54]} Bc7 {[%emt 0:04:03]} 19. Ba3 {[%emt 0:03:48]} Qd7 {[%emt 0:00:33]} 20. Ned6+ {[%emt 0:02:51]} Bxd6 {[%emt 0:02:54]} 21. Nxd6+ {[%emt 0:00:13]} Kd8 {[%emt 0:01:34]} 22. Rb1 {[%emt 0:01:21]} b6 {[%emt 0:03:26]} 23. Re1 {[%emt 0:01:48]} h5 {[%emt 0:03:37]} 24. g5 {[%emt 0:01:36]} h4 {[%emt 0:01:00]} 25. Qf3 {[%emt 0:01:03]} f6 {[%emt 0:03:01]} 26. gxf6 {[%emt 0:01:38]} gxf6 {[%emt 0:00:18]} 27. Qxf6+ {[%emt 0:01:28]} Kc7 {[%emt 0:00:01]} 28. Rxe6 {[%emt 0:01:11]} Rag8+ {[%emt 0:00:17]} 29. Kh2 {[%emt 0:01:02]} Rh7 {[%emt 0:02:05]} 30. Qe5 {[%emt 0:05:07]} Kb8 {[%emt 0:01:45]} 31. Ne8+ {[%emt 0:01:42]} Ka8 {[%emt 0:00:09]} 32. Nf6 {[%emt 0:00:17]} Qf7 {[%emt 0:00:11]} 33. Qe4 {[%emt 0:02:06]} Rc8 {[%emt 0:00:37]} 34. Rxc6 {[%emt 0:01:05]} 1-0

[Event "SVK Extraliga 2017-18"]
[Site "Slovakia"]
[Date "2017.09.30"]
[Round "1"]
[White "Kusiak, Matej"]
[Black "Hanko, Pavol"]
[Result "1-0"]
[ECO "B41"]
[WhiteElo "2301"]
[BlackElo "2087"]
[Annotator "NA"]
[PlyCount "101"]
[EventDate "2017.09.30"]
[EventType "team-tourn"]
[EventCountry "SVK"]
[SourceTitle "playchess.com"]
[Source "ChessBase"]
[SourceQuality "1"]
[TimeControl "40/5400+30:1800+30"]

1. e4 c5 2. Nf3 e6 3. c4 Nc6 4. Nc3 d6 5. Be2 Nf6 6. d4 cxd4 7. Nxd4 Be7 8. O-O O-O 9. Be3 a6 10. Rc1 Qc7 11. f4 Bd7 12. Bf3 Rac8 13. b3 Qb8 14. a4 Nxd4 15. Qxd4 Bc6 16. a5 Nd7 17. b4 b6 18. axb6 Bf6 19. Qd3 Nxb6 20. Rfd1 Rfd8 21. b5 Ba8 22. Ne2 Na4 23. Qb3 Nc5 24. Qb1 Qb6 25. Nd4 Rb8 26. Qc2 Qc7 27. Rb1 a5 28. Nb3 Na4 29. Nd4 Nc5 30. Nb3 Na4 31. Bd4 Rxb5 32. Bxf6 gxf6 33. h3 Rb4 34. Nd2 Rdb8 35. Rxb4 Rxb4 36. Ra1 Bc6 37. Qd3 Nb2 38. Qc3 e5 39. Kh2 Na4 40. Qd3 Nc5 41. Qe3 Ne6 42. fxe5 dxe5 43. Qh6 Qd8 44. Nf1 Rxc4 45. Ng3 Ng7 46. Ra3 a4 47. Be2 Rb4 48. Rc3 Bb7 49. Bc4 Rb1 50. Nf5 Nxf5 51. exf5 1-0

[Event "SVK Extraliga 2017-18"]
[Site "Slovakia"]
[Date "2017.09.30"]
[Round "1"]
[White "Petran, Peter"]
[Black "Jozefek, Michal"]
[Result "0-1"]
[ECO "A34"]
[WhiteElo "2301"]
[BlackElo "2198"]
[Annotator "NA"]
[PlyCount "86"]
[EventDate "2017.09.30"]
[EventType "team-tourn"]
[EventCountry "SVK"]
[SourceTitle "playchess.com"]
[Source "ChessBase"]
[SourceQuality "1"]
[TimeControl "40/5400+30:1800+30"]

1. g3 {[%emt 0:00:20]} c5 {[%emt 0:00:15]} 2. Bg2 {[%emt 0:00:10]} Nf6 {[%emt 0:01:14]} 3. c4 {[%emt 0:00:35]} d5 {[%emt 0:00:00]} 4. cxd5 {[%emt 0:00:04]} Nxd5 {[%emt 0:00:11]} 5. Nc3 {[%emt 0:00:06]} Nc7 {[%emt 0:00:34]} 6. d3 {[%emt 0:00:03]} e5 {[%emt 0:05:09]} 7. Be3 {[%emt 0:00:05]} Nc6 {[%emt 0:03:15] A34: Symmetrical English: 2 Nc3, lines with ...d5} (7... Be7 8. Qb3 Nc6 9. Bxc6+ bxc6 10. Nf3 f6 11. O-O Ne6 12. Rfc1 Bd7 13. Ne4 Rb8 14. Qc2 Nd4 15. Bxd4 cxd4 {½-½ (51) Eljanov,P (2707)-Areshchenko,A (2708) Kiev 2013}) 8. Bxc6+ {[%emt 0:00:06]} bxc6 {[%emt 0:00:09]} 9. Qa4 {[%emt 0:00:10]} Bd7 {[%emt 0:10:48]} 10. Nf3 {[%emt 0:00:08]} f6 $1 {[%emt 0:01:40]} 11. O-O {[%emt 0:00:10]} Ne6 {[%emt 0:04:13]} 12. Qd1 $146 {[%emt 0:05:23]} ({Predecessor:} 12. Nd2 Nd4 13. f3 Be7 14. Nc4 h5 {0-1 (25) Deman,P (1850)-Gomet,F (1950) Paris 2002}) 12... Rb8 {[%emt 0:17:29]} 13. b3 {[%emt 0:00:20]} Nd4 {[%emt 0:04:26]} 14. Ne1 {[%emt 0:05:13]} Bh3 {[%emt 0:03:47]} 15. Ng2 {[%emt 0:00:24]} h5 {[%emt 0:11:12]} 16. Rc1 {[%emt 0:07:58]} Qd7 {[%emt 0:03:38]} 17. f3 {[%emt 0:02:24]} h4 {[%emt 0:05:18]} 18. g4 {[%emt 0:02:11]} c4 {[%emt 0:16:20]} 19. dxc4 {[%emt 0:11:59]} Ba3 {[%emt 0:00:39]} 20. Rb1 {[%emt 0:06:10]} f5 {[%emt 0:00:13]} 21. g5 {[%emt 0:15:31]} Qe7 {[%emt 0:03:22]} 22. Rf2 {[%emt 0:04:55]} Rd8 {[%emt 0:00:22]} 23. Bd2 {[%emt 0:00:40]} Ne6 {[%emt 0:01:15]} 24. Qe1 {[%emt 0:02:38]} (24. Kh1 $17 {was necessary.}) 24... Bc5 {[%emt 0:00:56]} ({Resist} 24... Nxg5 25. Bxg5 Qxg5 26. b4 $17) 25. e3 {[%emt 0:00:29]} Qxg5 {[%emt 0:00:17]} 26. Kh1 {[%emt 0:00:53]} Qh5 {[%emt 0:02:20]} 27. Na4 {[%emt 0:02:47]} Bxg2+ {[%emt 0:01:10]} 28. Kxg2 {[%emt 0:00:38] [#]} Ng5 $11 {[%emt 0:01:50]} ({Black should try} 28... f4 $1 $19 {[%mdl 512]} 29. Nxc5 (29. exf4 Qg6+) 29... Nxc5) 29. h3 {[%emt 0:04:04]} Bd6 {[%emt 0:00:24]} ({Black should play} 29... Be7 $19 30. Ba5 Rd6) 30. Qe2 {[%emt 0:06:04]} Qg6 {[%emt 0:00:40]} 31. Kh1 {[%emt 0:00:27]} e4 {[%emt 0:00:10]} 32. Ba5 {[%emt 0:04:00]} Rd7 {[%emt 0:00:54]} 33. Rg1 {[%emt 0:00:25]} Bg3 {[%emt 0:00:08]} 34. fxe4 {[%emt 0:00:27]} Nxh3 {[%emt 0:01:46]} 35. Rff1 {[%emt 0:07:31]} Nxg1 {[%emt 0:00:07]} 36. Rxg1 {[%emt 0:00:01]} fxe4 {[%emt 0:00:28]} 37. Qg2 {[%emt 0:00:48]} Qf5 {[%emt 0:00:30]} 38. Bb4 {[%emt 0:00:34]} a5 {[%emt 0:00:06]} 39. Rf1 {[%emt 0:02:57]} Qg4 {[%emt 0:00:36]} 40. Bxa5 {[%emt 0:00:40]} Rd1 {[%emt 0:30:51]} 41. Nc3 {[%emt 0:33:49]} h3 {[%emt 0:00:50]} 42. Qg1 {[%emt 0:01:42]} Rxf1 {[%emt 0:00:19]} 43. Qxf1 {[%emt 0:00:02]} Rf8 {[%emt 0:00:08]} 0-1

[Event "SVK Extraliga 2017-18"]
[Site "Slovakia"]
[Date "2017.09.30"]
[Round "1"]
[White "Haring, Viktor"]
[Black "Dovzik, Juri"]
[Result "1-0"]
[ECO "B48"]
[WhiteElo "2297"]
[BlackElo "2308"]
[Annotator "NA"]
[PlyCount "55"]
[EventDate "2017.09.30"]
[EventType "team-tourn"]
[EventCountry "SVK"]
[SourceTitle "playchess.com"]
[Source "ChessBase"]
[SourceQuality "1"]
[TimeControl "40/5400+30:1800+30"]

1. e4 {[%emt 0:00:00]} c5 {[%emt 0:00:24]} 2. Nf3 {[%emt 0:00:08]} e6 {[%emt 0:00:32]} 3. d4 {[%emt 0:00:55]} cxd4 {[%emt 0:00:06]} 4. Nxd4 {[%emt 0:00:19]} Nc6 {[%emt 0:00:59]} 5. Nc3 {[%emt 0:01:20]} Qc7 {[%emt 0:00:34]} 6. Be3 {[%emt 0:01:29]} a6 {[%emt 0:01:25]} 7. Qd2 {[%emt 0:05:30]} Nf6 {[%emt 0:01:33]} 8. f3 {[%emt 0:04:18]} Bb4 {[%emt 0:02:06]} 9. O-O-O {[%emt 0:03:31]} Ne7 {[%emt 0:04:02]} 10. Kb1 {[%emt 0:30:55]} Bxc3 {[%emt 0:06:25]} 11. Qxc3 {[%emt 0:00:32]} Qxc3 {[%emt 0:00:08]} 12. bxc3 {[%emt 0:00:10]} d5 {[%emt 0:00:50]} 13. e5 {[%emt 0:01:46]} Nd7 $15 {[%emt 0:00:19]} 14. f4 {[%emt 0:00:18]} b6 {[%emt 0:08:04]} 15. Ka1 {[%emt 0:10:25]} Bb7 {[%emt 0:01:22]} 16. Bd3 {[%emt 0:10:01]} O-O {[%emt 0:25:56]} 17. Rb1 {[%emt 0:14:45]} b5 {[%emt 0:07:02]} 18. Rhf1 {[%emt 0:02:05]} Rfc8 {[%emt 0:00:29]} 19. f5 {[%emt 0:06:15]} Nxe5 {[%emt 0:13:55]} 20. fxe6 {[%emt 0:00:08]} fxe6 {[%emt 0:00:12]} 21. Nxe6 {[%emt 0:01:11]} Nxd3 {[%emt 0:10:16]} 22. cxd3 {[%emt 0:00:07]} Rxc3 {[%emt 0:00:27]} 23. Nc5 {[%emt 0:02:22]} Bc6 {[%emt 0:09:43]} 24. Kb2 {[%emt 0:00:17]} b4 {[%emt 0:00:32]} 25. Bd4 {[%emt 0:00:13]} Ra3 {[%emt 0:00:29]} 26. Rbe1 {[%emt 0:00:19]} Ng6 {[%emt 0:00:11]} 27. h4 {[%emt 0:01:17]} Nxh4 {[%emt 0:00:11]} 28. Re7 {[%emt 0:00:23]} 1-0

[Event "SVK Extraliga 2017-18"]
[Site "Slovakia"]
[Date "2017.09.30"]
[Round "1"]
[White "Kantorik, Marian"]
[Black "Jacko, Vladimir"]
[Result "1-0"]
[ECO "A70"]
[WhiteElo "2293"]
[BlackElo "2310"]
[Annotator "NA"]
[PlyCount "70"]
[EventDate "2017.09.30"]
[EventType "team-tourn"]
[EventCountry "SVK"]
[SourceTitle "playchess.com"]
[Source "ChessBase"]
[SourceQuality "1"]
[TimeControl "40/5400+30:1800+30"]

1. d4 e6 2. c4 c5 3. d5 exd5 4. cxd5 d6 5. Nc3 g6 6. e4 Bg7 7. Nf3 Nf6 8. h3 O-O 9. Bd3 b5 10. Bxb5 Nxe4 11. Nxe4 Qa5+ 12. Nfd2 Qxb5 13. Nxd6 Qb4 14. O-O Ba6 15. Re1 Nd7 16. Re4 Qb8 17. N2c4 Nf6 18. Rh4 Rd8 19. Bf4 g5 20. Bxg5 Rxd6 21. Nxd6 Qxd6 22. Qc2 h6 23. Bxh6 Qxd5 24. Rd1 Qe5 25. Bxg7 Kxg7 26. Qd2 Ng8 27. Re1 Qf6 28. Rg4+ Kf8 29. Qe3 Rc8 30. Qe4 Nh6 31. Rf4 Qg5 32. h4 Qg7 33. Re3 f5 34. Qe6 Bb7 35. Rg3 Re8 1-0

[Event "SVK Extraliga 2017-18"]
[Site "Slovakia"]
[Date "2017.09.30"]
[Round "1"]
[White "Cibickova, Zuzana"]
[Black "Pinter, Erik"]
[Result "1/2-1/2"]
[ECO "B35"]
[WhiteElo "2284"]
[BlackElo "2393"]
[Annotator "NA"]
[PlyCount "99"]
[EventDate "2017.09.30"]
[EventType "team-tourn"]
[EventCountry "SVK"]
[SourceTitle "playchess.com"]
[Source "ChessBase"]
[SourceQuality "1"]
[TimeControl "40/5400+30:1800+30"]

1. e4 {[%emt 0:00:00]} c5 {[%emt 0:00:09]} 2. Nf3 {[%emt 0:00:00]} Nc6 {[%emt 0:00:17]} 3. d4 {[%emt 0:00:26]} cxd4 {[%emt 0:00:07]} 4. Nxd4 {[%emt 0:00:05]} g6 {[%emt 0:03:47]} 5. Nc3 {[%emt 0:04:50]} Bg7 {[%emt 0:02:15]} 6. Be3 {[%emt 0:00:10]} Nf6 {[%emt 0:00:08]} 7. Bc4 {[%emt 0:00:42]} O-O {[%emt 0:00:25]} 8. Bb3 {[%emt 0:02:30]} d6 {[%emt 0:06:57]} 9. f3 {[%emt 0:00:37]} Bd7 {[%emt 0:00:09]} 10. Qd2 {[%emt 0:00:19]} Nxd4 {[%emt 0:01:49]} 11. Bxd4 {[%emt 0:00:07]} b5 {[%emt 0:00:09]} 12. a4 {[%emt 0:01:37]} bxa4 {[%emt 0:01:31] B77: Sicilian Dragon: Yugoslav Attack, 9 Bc4 sidelines} (12... b4 13. Nd5 Nxd5 14. Bxg7 Kxg7 15. exd5 Qb6 16. h4 h5 17. O-O-O Qa5 18. g4 Bxa4 19. Kb1 Bxb3 20. cxb3 {0-1 (33) Vachier Lagrave,M (2796)-Giri,A (2771) Stavanger 2017}) 13. Bxa4 {[%emt 0:00:16]} a5 {[%emt 0:09:49]} 14. O-O {[%emt 0:07:41] LiveBook: 6 Games} Be6 {[%emt 0:05:44]} 15. Nd5 $146 {[%emt 0:16:22]} ({Predecessor:} 15. Nd1 Qc7 16. Ne3 Rfc8 17. Bb5 Qb7 18. c4 Bd7 19. Bxd7 Nxd7 20. Nd5 Bf8 21. Rxa5 Rxa5 22. Qxa5 Rxc4 23. Bc3 e6 24. Ne3 Rc8 25. Rd1 Qb6 26. Qxb6 Nxb6 27. Bd4 {½-½ (27) Nigmatov,O (2331)-Ali,M (2423) Tashkent 2017}) 15... Nd7 {[%emt 0:09:37]} 16. Bxg7 {[%emt 0:25:28]} Kxg7 {[%emt 0:00:19]} 17. Bxd7 {[%emt 0:10:43]} Bxd7 {[%emt 0:01:34]} 18. Qd4+ {[%emt 0:01:51]} e5 $1 {[%emt 0:18:46]} 19. Qb6 {[%emt 0:03:51]} Be6 {[%emt 0:01:24]} 20. Nc7 {[%emt 0:04:02]} Rb8 {[%emt 0:12:28]} 21. Nxe6+ {[%emt 0:01:22]} fxe6 {[%emt 0:00:08]} 22. Qxd8 {[%emt 0:01:38]} Rfxd8 {[%emt 0:00:12]} 23. Rxa5 {[%emt 0:04:05]} Rxb2 {[%emt 0:00:23]} 24. Ra7+ {[%emt 0:00:04]} Kf6 {[%emt 0:01:51]} 25. Rxh7 {[%emt 0:02:53]} Rxc2 {[%emt 0:00:36]} 26. h4 {[%emt 0:00:42]} Rg8 {[%emt 0:14:19]} 27. g4 {[%emt 0:03:27]} g5 {[%emt 0:03:36]} 28. Rh6+ {[%emt 0:02:14]} Kf7 {[%emt 0:00:38]} 29. hxg5 {[%emt 0:00:47]} Rxg5 {[%emt 0:00:26]} 30. Ra1 {[%emt 0:02:24]} Rg6 {[%emt 0:00:33]} 31. Rxg6 {[%emt 0:03:29]} Kxg6 {[%emt 0:00:08]} 32. Rd1 {[%emt 0:00:03]} Rc6 {[%emt 0:03:13]} 33. Kf2 {[%emt 0:01:03]} Rb6 {[%emt 0:00:14]} 34. Rd3 {[%emt 0:00:18]} Rc6 {[%emt 0:00:05]} 35. Kg3 {[%emt 0:00:23]} Rb6 {[%emt 0:00:47]} 36. Rd2 {[%emt 0:00:05]} Rc6 {[%emt 0:00:13]} 37. Kf2 {[%emt 0:00:42]} Rb6 {[%emt 0:00:09]} 38. Ke3 {[%emt 0:00:03]} Rc6 {[%emt 0:00:07]} 39. Rd3 {[%emt 0:00:09]} Rb6 {[%emt 0:00:13]} 40. Kf2 {[%emt 0:00:29]} Rc6 {[%emt 0:30:16]} 41. Kg3 {[%emt 0:07:57]} Rb6 {[%emt 0:00:00]} 42. Kh4 {[%emt 0:02:54]} Rc6 {[%emt 0:00:00]} 43. Kh3 {[%emt 0:19:20]} Rb6 $11 {[%emt 0:00:00]} 44. Kh4 {[%emt 0:00:20]} Rc6 {[%emt 0:00:00]} 45. Kg3 {[%emt 0:01:29]} Kg5 {[%emt 0:00:00]} 46. Rd2 {[%emt 0:00:19]} Kg6 {[%emt 0:00:00]} 47. Kh4 {[%emt 0:01:10]} Rb6 {[%emt 0:00:00]} 48. Rd1 {[%emt 0:01:10]} Rc6 {[%emt 0:00:00]} 49. Rd2 {[%emt 0:01:09]} Rb6 {[%emt 0:00:00]} 50. Rd1 {[%emt 0:00:37]} 1/2-1/2